Cogmind - Beta 9.4 @@@ ROGUE MODE // 2020.01.08 @ 01:15:05 // Winter2019/RPGLIKE Player: PyroDawn Result: Destroyed by Y-54 Guardian with Gatling Laser Performance ------------- Evolutions (3) 1500 Regions Visited (4) 800 Robots Destroyed (0) 0 Value Destroyed (0) 0 Prototype IDs (4) 80 Alien Tech Used (0) 0 Bonus (834) 834 TOTAL SCORE: 3214 Bonus ------- Pacifist 834 Cogmind --------- Core Integrity 0/900 Matter 238/300 Energy 99/100 System Corruption 4% Temperature Cool (18) Movement Core (50) Location -7/Factory Parts ------- > --- POWER (1) -------- (None) > --- PROPULSION (1) --- (None) > --- UTILITY (2) ------ Advanced Signal Interpreter System Shield > --- WEAPON (2) ------- Greatsword > --- INVENTORY (0) ---- (None) Peak State ------------ > --- POWER ------------ Light Nuclear Core > --- PROPULSION ------- (None) > --- UTILITY ---------- Advanced Signal Interpreter System Shield > --- WEAPON ----------- Greatsword > --- INVENTORY -------- (None) [Rating: 17] Favorites ----------- Power Light Ion Engine Engine Light Ion Engine Power Core Light Nuclear Core Propulsion None Utility System Shield Processor Advanced Signal Interpreter Hackware System Shield Weapon Greatsword Impact Weapon Impact Mace Slashing Weapon Greatsword Build | -11 -10 -9 -8 -7 ------- Run | Scr Mat Mat Mat Fac Slots Evolved 2 | . . . 1 1 Power . | . . . . . Propulsion . | . . . . . Utility 1 | . . . 1 . Weapon 1 | . . . . 1 Parts Attached 7 | 1 . 1 1 4 Power 2 | 1 . . . 1 Engine 1 | 1 . . . . Core 1 | . . . . 1 Reactor . | . . . . . Propulsion . | . . . . . Treads . | . . . . . Leg . | . . . . . Wheel . | . . . . . Hover . | . . . . . Flight . | . . . . . Utility 3 | . . 1 1 1 Device . | . . . . . Storage . | . . . . . Processor 2 | . . 1 . 1 Hackware 1 | . . . 1 . Protection . | . . . . . Artifact . | . . . . . Weapon 2 | . . . . 2 Energy Gun . | . . . . . Energy Cannon . | . . . . . Ballistic Gun . | . . . . . Ballistic Cannon . | . . . . . Launcher . | . . . . . Special Weapon . | . . . . . Impact Weapon 1 | . . . . 1 Slashing Weapon 1 | . . . . 1 Piercing Weapon . | . . . . . Special Melee Weapon . | . . . . . Unidentified Prototypes 1 | . . . . 1 Parts Lost 2 | . . . . 2 Power 1 | . . . . 1 Propulsion . | . . . . . Utility . | . . . . . Weapon 1 | . . . . 1 Highest Loss Streak 1 | . . . . 1 Average Slot Usage (%) 53 | . 25 36 56 67 Engine 12 | . 25 25 20 3 Core 7 | . . . . 14 Processor 14 | . . 11 20 18 Hackware 11 | . . . 16 18 Impact Weapon 2 | . . . . 5 Slashing Weapon 3 | . . . . 7 Naked Turns . | . . . . . Heaviest Build 10 | 3 3 3 3 10 Greatest Support 13 | 3 3 3 8 13 Greatest Overweight (x) 1 | . . . . 1 Average Overweight (x) . | . . . . . Largest Inventory Capacity . | . . . . . Average Capacity . | . . . . . Most Carried . | . . . . . Average Carried . | . . . . . Final Capacity . | . . . . . Final Carried . | . . . . . Class Distribution -------------------- 100% | Hacker-Mutant Dominant Class ---------------- Hacker-Mutant | -10/Materials Hacker-Mutant | -9/Materials Hacker-Mutant | -8/Materials Hacker-Mutant | -7/Factory Resources | -11 -10 -9 -8 -7 ----------- Run | Scr Mat Mat Mat Fac Matter Collected 210 | 210 . . . . Remotely . | . . . . . Salvage Created . | . . . . . Parts . | . . . . . Haulers Intercepted . | . . . . . Recyclers Shooed . | . . . . . Parts Field Recycled . | . . . . . Retrieved Matter . | . . . . . Parts Self-Destructed . | . . . . . Prevented . | . . . . . Kills | -11 -10 -9 -8 -7 ------- Run | Scr Mat Mat Mat Fac Combat Hostiles Destroyed . | . . . . . Classes Destroyed . | . . . . . Best Kill Streak . | . . . . . Combat Bots Only . | . . . . . Max Kills in Single Turn . | . . . . . Gunslinging . | . . . . . Exploded . | . . . . . Melee . | . . . . . Uniques/NPCs Destroyed . | . . . . . Combat | -11 -10 -9 -8 -7 -------- Run | Scr Mat Mat Mat Fac Damage Taken 1003 | . 198 15 80 710 Core 902 | . 190 15 80 617 Absorbed by Shields . | . . . . . Redirected to Core 342 | . 28 . . 314 Core Remaining (%) 71 | 100 68 65 52 . Volleys Fired . | . . . . . Largest . | . . . . . Hottest . | . . . . . Shots Fired . | . . . . . Gun . | . . . . . Cannon . | . . . . . Launcher . | . . . . . Special . | . . . . . Kinetic . | . . . . . Thermal . | . . . . . Explosive . | . . . . . Electromagnetic . | . . . . . Robot Hit Streak . | . . . . . Robot Miss Streak . | . . . . . Penetration Max . | . . . . . Secondary Targets . | . . . . . Shots Hit Robots 1 | . . . . 1 Core Hits 1 | . . . . 1 Critical Hits . | . . . . . Critical Kills . | . . . . . Critical Parts Destroyed . | . . . . . Melee Attacks 1 | . . . . 1 Impact . | . . . . . Slashing 1 | . . . . 1 Piercing . | . . . . . Sneak Attacks . | . . . . . Combat Hostiles . | . . . . . Follow-up Attacks . | . . . . . Damage Inflicted 52 | . . . . 52 Guns . | . . . . . Cannons . | . . . . . Explosions . | . . . . . Melee 51 | . . . . 51 Ramming 1 | . . . . 1 Kinetic . | . . . . . Thermal . | . . . . . Explosive . | . . . . . Electromagnetic . | . . . . . Impact . | . . . . . Slashing 51 | . . . . 51 Piercing . | . . . . . Highest Corruption 4 | . . . . 4 Average Corruption 2 | . . . . 2 Corruption Purged . | . . . . . Effects 2 | . . . . 2 Heat Flow Errors 1 | . . . . 1 Energy Discharges 1 | . . . . 1 Overload Shots . | . . . . . Overflow Damage . | . . . . . Projectiles . | . . . . . Explosions . | . . . . . Melee . | . . . . . Knockbacks . | . . . . . Impact . | . . . . . Kinetic . | . . . . . Secondary . | . . . . . Self-Inflicted Damage . | . . . . . Shots . | . . . . . Rammed 1 | . . . . 1 Targets Rammed 1 | . . . . 1 Kicked . | . . . . . Crushed . | . . . . . Highest Temperature 258 | . . . . 258 Average Temperature 132 | . . . . 132 Received Heat Transfer 123 | . 24 9 36 54 Siege Activations . | . . . . . Robots Corrupted . | . . . . . Combat Hostiles . | . . . . . Parts Fried . | . . . . . Impact Corruptions . | . . . . . Robots Melted . | . . . . . Combat Hostiles . | . . . . . Parts Melted . | . . . . . Heat Transferred . | . . . . . Parts Sabotaged . | . . . . . Parts Stolen . | . . . . . Parts Stripped . | . . . . . Power Chain Reactions . | . . . . . Missiles Intercepted . | . . . . . Alert | -11 -10 -9 -8 -7 ------- Run | Scr Mat Mat Mat Fac Peak Influence 99 | . 45 99 91 89 Average Influence 49 | . 12 57 64 55 Maximum Alert Level . | . . . . . Low Security (%) 100 | 100 100 100 100 100 Level 1 . | . . . . . Level 2 . | . . . . . Level 3 . | . . . . . Level 4 . | . . . . . Level 5 . | . . . . . High Security . | . . . . . Max Security . | . . . . . Squads Dispatched 3 | . 1 1 1 . Investigation 1 | . . 1 . . Extermination . | . . . . . Reinforcement 2 | . 1 . 1 . Assault . | . . . . . Garrison . | . . . . . Intercept . | . . . . . Construction Impeded . | . . . . . Haulers Reinforced . | . . . . . Stealth | -11 -10 -9 -8 -7 --------- Run | Scr Mat Mat Mat Fac Distress Signals 1 | . . 1 . . Communications Jammed . | . . . . . Distress Signals . | . . . . . Times Spotted 28 | . 12 8 4 4 Peak Tracking Total 8 | . 7 8 3 3 Tactical Retreats 5 | . 2 2 . 1 Traps | -11 -10 -9 -8 -7 ------- Run | Scr Mat Mat Mat Fac Traps Triggered 1 | . . . . 1 Indirectly . | . . . . . Trap Hack Attempts . | . . . . . Triggered . | . . . . . Disarmed . | . . . . . Reprogrammed . | . . . . . Reused . | . . . . . Traps Extracted . | . . . . . Installed . | . . . . . Triggered . | . . . . . Machines | -11 -10 -9 -8 -7 ---------- Run | Scr Mat Mat Mat Fac Machines Disabled . | . . . . . Max in Single Turn . | . . . . . Garrison Access 2 | . . . 1 1 Machines Sabotaged . | . . . . . Garrisons Compromised . | . . . . . Overloaded Fab Kills . | . . . . . Fab Network Shutdowns . | . . . . . Hacking | -11 -10 -9 -8 -7 --------- Run | Scr Mat Mat Mat Fac Machines Accessed 11 | . 1 5 2 3 Terminals 8 | . 1 4 1 2 Fabricators . | . . . . . Repair Stations . | . . . . . Recycling Units . | . . . . . Scanalyzers 1 | . . 1 . . Garrison Access 2 | . . . 1 1 Total Hacks 49 | . 4 28 7 10 Successful 34 | . 2 18 7 7 Failed 15 | . 2 10 . 3 Catastrophic . | . . . . . Database Lockouts . | . . . . . Manual 37 | . 4 23 6 4 Terminals 45 | . 4 27 6 8 Fabricators . | . . . . . Repair Stations . | . . . . . Recycling Units . | . . . . . Scanalyzers 1 | . . 1 . . Garrison Access 3 | . . . 1 2 Terminal Hacks 12 | . . 6 2 4 Record 1 | . . 1 . . Prototype ID Bank 1 | . . . . 1 Level Access Points 2 | . . . 1 1 Branch Access Points 1 | . . 1 . . Terminal Index 3 | . . 1 1 1 Locate Traps 1 | . . 1 . . Registered Prototypes 1 | . . 1 . . Zone Layout 2 | . . 1 . 1 Fabricator Hacks . | . . . . . Repair Station Hacks . | . . . . . Recycling Unit Hacks . | . . . . . Scanalyzer . | . . . . . Garrison Access Hacks 2 | . . . 1 1 Seal Access 2 | . . . 1 1 Unauthorized Hacks 45 | . 6 27 8 4 Terminals 19 | . 2 11 4 2 Track 7 | . 1 4 1 1 Botnet 7 | . 1 4 1 1 Disrupt 3 | . . 2 1 . Operators 2 | . . 1 1 . Fabricators . | . . . . . Repair Stations . | . . . . . Recycling Units . | . . . . . Scanalyzers 1 | . . 1 . . Extract 1 | . . 1 . . Garrison Access . | . . . . . Data Cores Recovered . | . . . . . Used . | . . . . . Hacking Detections 8 | . 1 4 1 2 Full Trace Events . | . . . . . Feedback Events . | . . . . . Feedback Blocked . | . . . . . Robot Schematics Acquired . | . . . . . Robots Built . | . . . . . Matter . | . . . . . Time . | . . . . . Total Robot Build Rating . | . . . . . Part Schematics Acquired 10 | . . 10 . . Parts Built . | . . . . . Matter . | . . . . . Time . | . . . . . Total Part Build Rating . | . . . . . Parts Repaired . | . . . . . Time . | . . . . . Parts Recycled . | . . . . . Recycled Matter . | . . . . . Retrieved Matter . | . . . . . Retrieved Components . | . . . . . Parts Scanalyzed . | . . . . . Part Schematics Acquired . | . . . . . Parts Damaged . | . . . . . Bothacking | -11 -10 -9 -8 -7 ------------ Run | Scr Mat Mat Mat Fac Used RIF Installer . | . . . . . Robots Hacked . | . . . . . Non-combat . | . . . . . Combat . | . . . . . Robot Hacks Applied . | . . . . . Relay Couplers Released . | . . . . . Robots Rewired . | . . . . . Allies Hacked . | . . . . . Hacks Repelled . | . . . . . Allies | -11 -10 -9 -8 -7 -------- Run | Scr Mat Mat Mat Fac Total Allies . | . . . . . Largest Group . | . . . . . Highest-Rated Group . | . . . . . Highest-Rated Ally . | . . . . . Total Orders . | . . . . . Ally Attacks . | . . . . . Total Damage . | . . . . . Kills . | . . . . . Allies Corrupted . | . . . . . Allies Melted . | . . . . . Intel | -11 -10 -9 -8 -7 ------- Run | Scr Mat Mat Mat Fac Robot Analysis Total . | . . . . . Derelict Logs Recovered . | . . . . . Drone Launches . | . . . . . Drone Recoveries . | . . . . . Exploration | -11 -10 -9 -8 -7 ------------- Run | Scr Mat Mat Mat Fac Turns Passed 506 | 14 66 110 51 265 Spaces Moved 820 | 26 125 197 99 373 Core 820 | 26 125 197 99 373 Treads . | . . . . . Legs . | . . . . . Wheels . | . . . . . Hover . | . . . . . Flight . | . . . . . Fastest Speed 50 | 50 50 50 50 50 Average Speed 51 | 50 50 50 50 53 Slowest Speed 100 | 50 50 50 50 100 Overloaded Moves . | . . . . . Propulsion Burnouts . | . . . . . Robots Hopped . | . . . . . Cave-ins Triggered . | . . . . . Exploration Rate (%) 20 | 3 31 32 20 17 Regions Visited 4 Branch Regions . Pre-discovered Areas . | . . . . . Known Exits Taken 2 | . . 1 1 . Unknown Exits Taken 2 | 1 1 . . . Scrap Searched . | . . . . . Spaces Dug . | . . . . . Terrain Destroyed . | . . . . . Melee . | . . . . . Projectile . | . . . . . AOE . | . . . . . Actions | -11 -10 -9 -8 -7 --------- Run | Scr Mat Mat Mat Fac Total 893 | 26 127 207 99 434 Wait 65 | . 3 10 . 52 Move 816 | 25 124 196 98 373 Hop . | . . . . . Pick Up . | . . . . . Fast Attach 7 | 1 . 1 1 4 Attach . | . . . . . Detach . | . . . . . Swap 1 | . . . . 1 Drop 2 | . . . . 2 Fire . | . . . . . Melee 1 | . . . . 1 Ram 1 | . . . . 1 Kick . | . . . . . Crush . | . . . . . Escape Stasis . | . . . . . Rewire . | . . . . . Trap . | . . . . . Miscellaneous . | . . . . . Route ------- -11/Scrapyard -10/Materials -9/Materials (discovered 3 exits: *Mat / Min x2) -8/Materials (discovered 3 exits: *Fac x3) -7/Factory (discovered 4 exits: *Fac x4) History --------- Turn | Location | Event 4 | -11/Scrapyard | Discovered new exit (range 16) 15 | -11/Scrapyard | Entered Materials 77 | -10/Materials | Discovered new exit (range 8) 81 | -10/Materials | Entered another Materials area 83 | -9/Materials | Reached level 2 161 | -9/Materials | Identified exit to Mines 186 | -9/Materials | Discovered new exit (range 12) 191 | -9/Materials | Identified exit to Materials 191 | -9/Materials | Entered another Materials area 193 | -8/Materials | Reached level 3 194 | -8/Materials | Upgraded with Utility slot (x1) 199 | -8/Materials | Identified exit to Factory 242 | -8/Materials | Entered Factory 244 | -7/Factory | Reached level 4 268 | -7/Factory | Core integrity fell below 50% 338 | -7/Factory | Build established: Hacker-Mutant 361 | -7/Factory | Core integrity fell below 20% 380 | -7/Factory | Identified exit to Factory 384 | -7/Factory | Upgraded with Weapon slot (x1) 507 | -7/Factory | Destroyed by Y-54 Guardian with Gatling Laser Last Messages --------------- 00395_ Upgraded: Core Integrity (+300) 00395_ Slammed into P-60 Hacker. 00395_ Destabilizing: Short circuit. 00395_ Broken Adv. Signal Interpreter permanently disabled. 00415_ K-01 Serf cleans the Nuclear Reactor. 00422_ Upgraded: Mass Support (+5) 00461_ Connecting with Garrison Access... >>Seal Access door sealed. 00462_ System corrupted: Heat flow error (+276). 00493_ Lgt. Nuclear Core destroyed. 00499_ Connecting with Terminal... >>Layout(Zone) Retrieving Zone 4Y layout... Downloaded map data. >>Prototypes Downloading prototype IDs... Enh. Autogun Cld. Deuterium Engine Cld. Airjet Map ----- +----------------------------------------------------+ | ?????????????????????????????????????????????????? | | ###??????????????????????????????????????????????? | | #??????????????????????????????????????????????? | | #??????????????????????????????????????????????? | | #??????????????????????????????????????????????? | | #??????????????????????????????????????????????? | | #??????????????????????????????????????????????? | | #??????????????????????????????????????????????? | | ###??????????????????????????????????????????????? | | ?????????????????????????????????????????????????? | | ?????????????????????????????????????????????????? | | ?????????????????????????#+###???????????????????? | | ????????????????????????? #???????????????????? | | """ ???????????????????? ???????????????????? | | """ ???????????????????? Y ????????????????????? | | """ ???????????????????? ????????????????????? | | ????????????????????????? ????????????????????? | | ????????????????????????# #????????????????????? | | ?#######????????????????# ###??????????????????? | | ## #????????????????# # ??????????????????? | | #???????########## # ??????????????????? | | #???????# # # ??????????????????? | | #???????# """ # # ??????????????????? | | ## #???????# """ # # ??????????????????? | | ####/########??# """ # + ??????????????????? | | #??# #@ # ??????????????????? | | "" #??# """ #^ ###??????????????????? | | "" #??# """ # # ??????????????????? | | "" #??# """ # # ??????????????????? | | "" "" #??# + + "??????????????????? | | ""G"" ############# # "??????????????????? | | #+########### ####### # "??????????????????? | | # ########### " ] ? # "??????????????????? | | "T # "??????????????????? | | ######### ? # ??????????????????? | | #???????# ######## ####??????????????????? | | #???????###+####?????# #?????????????????????? | | #???????# #?????# #?????????????????????? | | #+########??# """ #?????# #?????????????????????? | | #??# "R" #?????# ####??????????????????? | | """ """ #??# " " #?????# ??????????????????? | | """ """ #??# #?????######??????????????????? | | """ """ #??# #?????????????????????????????? | | #??########?????????????????????????????? | | #???????????????????????????????????????? | | ##########???????????????????????????????????????? | | | | | | | | | +----------------------------------------------------+ Best States ------------- Heat Dissipation 25 Energy Generation 14 Energy Capacity 160 Matter Stores 300 Matter Capacity 300 Sight Range 16 Robot Scan Range 20 Terrain Scan Density 10 Evasion (%) 50 Offensive Hacking 15 Defensive Hacking 25 Item Schematics ----------------- Aluminum Leg | -9/Materials | Extracted Field Recycling Unit | -9/Materials | Extracted EM Shotgun | -9/Materials | Extracted Com. Wheel | -9/Materials | Extracted Beam Cannon | -9/Materials | Extracted Imp. Terrain Scanner | -9/Materials | Extracted Imp. Treads | -9/Materials | Extracted Arm. Wheel | -9/Materials | Extracted Lgt. Ion Engine | -9/Materials | Extracted Disposable Heat Sink | -9/Materials | Extracted Robot Schematics ------------------ None Fabricated ------------ Nothing Alien Tech Used ----------------- None Achievements -------------- None Challenges ------------ None RPGLIKE | -11 -10 -9 -8 -7 --------- Run | Scr Mat Mat Mat Fac Levels Raised 3 | . . 1 1 1 XP Earned 8067 | 3000 100 1785 1682 1500 XP Spent 6325 | . 2925 1400 600 1400 Upgrades 26 | . 14 2 2 8 Utility Slot 1 | . . . 1 . Weapon Slot 1 | . . . . 1 Core Integrity 6 | . . . . 6 Mass Support 2 | . . . 1 1 Sensor Range 10 | . 10 . . . Hack Attack % 3 | . 2 1 . . Hack Defense % 3 | . 2 1 . . Protomatter Created . | . . . . . Protomatter Decayed . | . . . . . Game ------ Seed GhostSuperchargedShielding Manual? 0 Play Time 00:18:14 Cumulative 451.5 hours Start 2020.01.08 @ 01:02:08 End 2020.01.08 @ 01:15:05 Sessions 1 Manual Loads 0 Difficulty Rogue Special Mode Winter2019/RPGLIKE Game No. 131 Rogue 131 Adventurer 0 Explorer 0 Win Type - Total 1 Types 1/0/0/0/0/0/0 Lore% 69 Gallery% 76 Achievement% 49 Wizard Run 0 Options --------- ASCII 0 Keyboard 0 Movement Arrows Keybinds 0 Fullscreen 1 Font 12/Smallcaps Map View 83x54 Tactical HUD 1 Map Filters NONE Filters NONE Steam 1 RUN: a4a89e64-4732-4a94-a84e-dca10a8a6d67